bitfinex/quotes_SOLUSD_20250806
["timestamp","ask_amount","ask_price","bid_price","bid_amount"]
[1754495707710,16.29192695,168.88,168.87,57.46621557]
[1754495708006,16.29192695,168.88,168.86,5.0]
[1754495708210,6.86932413,168.87,168.86,5.0]
[1754495709099,156.66932413,168.87,168.86,5.0]
[1754495709585,6.86932413,168.87,168.86,5.0]
[1754495710487,16.74534847,168.87,168.86,5.0]
[1754495711508,16.74534847,168.87,168.81,15.10621557]
[1754495711693,6.15932413,168.82,168.81,15.10621557]
[1754495711897,6.86932413,168.82,168.8,42.36]
[1754495712122,6.86932413,168.81,168.71,14.81787833]
[1754495712312,6.15932413,168.77,168.74,15.10621557]
[1754495712509,6.15932413,168.76,168.74,15.10621557]
[1754495712797,6.15932413,168.76,168.75,57.46621557]
[1754495713397,6.15932413,168.8,168.76,15.10621557]
[1754495713604,6.15932413,168.83,168.78,15.10621557]
[1754495713816,6.15932413,168.82,168.8,15.10621557]
[1754495714515,155.95932413,168.83,168.8,15.10621557]
[1754495714714,149.8,168.83,168.8,15.10621557]
[1754495715136,0.71,168.86,168.82,15.10621557]
[1754495715320,3.9608121,168.87,168.83,5.92311792]
[1754495715619,19.26148175,168.88,168.84,15.77621557]
[1754495715824,9.42260282,168.88,168.86,15.10621557]
[1754495716023,9.42260282,168.88,168.86,15.77621557]
[1754495717018,9.42260282,168.88,168.86,21.69808219]
[1754495717637,9.42260282,168.88,168.87,15.77621557]
[1754495717829,9.42260282,168.88,168.87,16.06053871]
[1754495718330,9.42260282,168.88,168.87,25.89941764]
[1754495718833,9.42260282,168.88,168.87,16.06053871]
[1754495719034,9.42260282,168.88,168.87,21.98225363]
[1754495719237,9.42260282,168.88,168.87,15.10621557]
[1754495720250,19.97148175,168.88,168.87,15.10621557]
[1754495720731,23.94210484,168.88,168.87,15.10621557]
[1754495721316,23.94210484,168.88,168.86,15.10621557]
[1754495721650,23.94210484,168.88,168.85,42.4]
[1754495721651,4.68158839,168.87,168.85,42.4]
[1754495721937,0.71,168.87,168.86,15.10621557]
[1754495722101,10.54887893,168.87,168.86,15.10621557]
[1754495722304,14.52046732,168.87,168.86,15.10621557]
[1754495722841,14.52046732,168.87,168.8,6.65384936]
[1754495723049,9.83887893,168.84,168.82,15.10621557]
[1754495724305,13.81046732,168.85,168.82,15.10621557]
[1754495725138,9.83887893,168.85,168.82,21.69961962]
[1754495725314,9.83887893,168.85,168.82,15.77621557]
[1754495725942,10.54887893,168.85,168.82,15.10621557]
[1754495726336,4.68706052,168.85,168.82,15.10621557]
[1754495726542,14.52593945,168.85,168.82,15.10621557]
[1754495726743,3.97706052,168.85,168.83,0.67]
[1754495726934,149.8,168.86,168.84,58.17621557]
[1754495727432,149.8,168.86,168.85,15.10621557]
[1754495727617,19.97148175,168.88,168.85,15.10621557]
[1754495727818,4.68831009,168.87,168.85,15.10621557]
[1754495728022,13.81718902,168.86,168.85,15.10621557]
[1754495728253,3.97831009,168.86,168.85,15.10621557]
[1754495728456,13.81718902,168.87,168.85,15.10621557]
[1754495728654,0.03,168.86,168.85,15.10621557]
[1754495729157,4.00831009,168.86,168.85,15.10621557]
[1754495729350,0.03,168.86,168.85,21.02863191]
[1754495729559,0.03,168.86,168.85,31.15183398]
[1754495729738,0.03,168.86,168.85,31.82183398]
[1754495730843,9.42260282,168.88,168.86,0.28432314]
[1754495731137,9.42260282,168.88,168.87,94.27941764]
[1754495731327,1e-08,168.88,168.87,100.20113256]
[1754495731534,1e-08,168.88,168.87,117.99103356]
[1754495736670,1e-08,168.88,168.87,108.15215463]
[1754495736861,1e-08,168.88,168.87,89.40793049]
[1754495737455,1e-08,168.88,168.87,99.24680942]
[1754495737964,1e-08,168.88,168.87,99.53113256]
[1754495738357,1e-08,168.88,168.87,99.38897099]
[1754495738738,1e-08,168.88,168.87,99.53113256]
[1754495738932,1e-08,168.88,168.87,63.40793049]
[1754495739327,1e-08,168.88,168.87,74.09897099]
[1754495739547,1e-08,168.88,168.87,100.24113256]
[1754495745333,9.83887893,168.98,168.91,0.28432314]
[1754495745540,0.68,168.96,168.94,24.9450945]
[1754495745757,3.97072669,168.98,168.95,57.38621557]
[1754495746568,3.97072669,168.98,168.95,63.30482258]
[1754495746740,0.68,168.97,168.95,73.14370151]
[1754495746941,4.65072669,168.99,168.96,9.83887893]
[1754495747258,0.68,168.98,168.97,57.38621557]
[1754495750669,10.78734968,169.0,168.97,63.3044259]
[1754495750973,0.68,168.99,168.97,63.3044259]
[1754495751560,0.68,168.99,168.97,57.38621557]
[1754495751956,0.68,168.98,168.97,57.38621557]
[1754495752256,0.71,168.98,168.97,57.38621557]
[1754495752457,0.71,168.98,168.94,0.28432314]
[1754495752644,6.13662299,168.97,168.96,15.10621557]
[1754495752849,0.68,168.97,168.96,63.24472087]
[1754495753071,0.68,168.97,168.96,57.32621557]
[1754495753449,0.03,168.98,168.96,63.24477617]
[1754495753652,0.71,168.98,168.96,63.24477617]
[1754495754848,0.03,168.98,168.96,63.24477617]
[1754495755062,0.03,168.98,168.96,27.16139916]
[1754495755287,0.03,168.98,168.97,57.61053871]
[1754495755861,0.03,168.98,168.97,57.46837714]
[1754495756065,0.03,168.98,168.97,57.32621557]
[1754495756863,0.03,168.98,168.97,63.2444259]
[1754495757595,0.03,168.98,168.97,57.34621557]
[1754495758150,0.03,168.98,168.97,63.2644259]
[1754495758687,0.03,168.98,168.97,57.34621557]
[1754495759070,0.03,168.98,168.97,63.2644259]
[1754495759375,0.03,168.98,168.97,57.34621557]
[1754495759574,6.84662299,168.98,168.93,26.0]
[1754495759787,6.13662299,168.96,168.94,57.34621557]
[1754495759961,0.68,168.97,168.94,57.34621557]
[1754495759962,6.81662299,168.97,168.94,57.34621557]
[1754495760178,0.03,168.98,168.94,57.34621557]
[1754495760179,0.03,168.98,168.96,21.24283856]
[1754495760353,0.03,168.98,168.97,42.24]
[1754495760754,0.03,168.98,168.97,48.15821033]
[1754495761284,0.03,168.98,168.97,42.24]
[1754495761449,0.03,168.98,168.97,48.15821033]
[1754495762258,0.03,168.98,168.97,70.11104889]
[1754495763305,0.03,168.98,168.97,15.10621557]
[1754495763599,0.03,168.98,168.97,63.2844259]
[1754495765602,0.72,168.98,168.97,57.36621557]
[1754495765962,0.03,168.98,168.97,63.2844259]
[1754495766364,0.03,168.98,168.97,69.42104889]
[1754495766574,0.03,168.98,168.97,64.22874904]
[1754495767180,0.03,168.98,168.97,70.36537203]
[1754495768966,0.03,168.98,168.97,57.61053871]
[1754495769281,0.72,168.98,168.97,15.10621557]
[1754495769462,6.85662299,168.98,168.97,57.32621557]
[1754495769894,0.03,168.98,168.97,63.2444259]
[1754495771589,0.03,168.98,168.97,63.9044259]
[1754495771979,0.03,168.98,168.97,64.18874904]
[1754495772170,0.03,168.98,168.97,70.32537203]
[1754495772572,150.49,169.02,168.98,1515.36053871]
[1754495772766,6.82662299,169.01,169.0,15.10621557]
[1754495773790,0.69,169.01,169.0,15.10621557]
[1754495774173,6.82662299,169.01,169.0,15.10621557]
[1754495774573,6.82662299,169.01,169.0,57.32621557]
[1754495774783,149.8,169.02,169.0,57.32621557]
[1754495774979,156.62662299,169.02,169.0,57.32621557]
[1754495775384,149.8,169.02,169.0,63.24329561]
[1754495777296,150.49,169.02,169.0,57.32621557]
[1754495778295,156.62662299,169.02,169.0,57.32621557]
[1754495778696,149.8,169.02,169.0,57.32621557]
[1754495778877,150.49,169.02,169.0,57.32621557]
[1754495779277,0.69,169.01,169.0,57.32621557]
[1754495779685,155.93662299,169.02,169.0,63.24331048]
[1754495780204,156.62662299,169.02,169.0,57.32621557]
[1754495780403,0.69,169.01,169.0,57.32621557]
[1754495780579,6.82662299,169.01,169.0,57.32621557]
[1754495781206,155.93662299,169.02,169.0,57.32621557]
[1754495781388,156.62662299,169.02,169.0,57.32621557]
[1754495782809,0.69,169.01,169.0,57.32621557]
[1754495785389,155.93662299,169.02,169.0,57.32621557]
[1754495785797,156.62662299,169.02,169.0,57.32621557]
[1754495785990,0.69,169.01,169.0,57.32621557]
[1754495787424,0.69,169.01,169.0,57.24621557]
[1754495787425,6.82662299,169.01,169.0,57.24621557]
[1754495788202,10.80889155,169.01,169.0,57.24621557]
[1754495789012,4.67226856,169.01,169.0,57.24621557]
[1754495789199,3.98226856,169.01,169.0,57.24621557]
[1754495790009,3.98226856,169.01,169.0,15.10621557]
[1754495790391,10.80889155,169.01,169.0,42.14]
[1754495790596,10.80889155,169.01,169.0,57.24621557]
[1754495791334,10.80889155,169.01,169.0,42.14]
[1754495791696,10.80889155,169.01,169.0,42.12]
[1754495791697,4.67226856,169.01,169.0,42.12]
[1754495791898,10.80889155,169.01,169.0,42.12]
[1754495792593,3.98226856,169.01,169.0,63.14337533]
[1754495792818,3.98226856,169.01,169.0,57.22621557]
[1754495793021,3.98226856,169.01,169.0,69.96999832]
[1754495793189,0.03,169.04,169.01,15.10621557]
[1754495793190,3.98226856,169.03,169.01,15.10621557]
[1754495793393,3.98226856,169.03,169.0,70.25432146]
[1754495793394,5.99057568,169.08,169.05,1493.80337701]
[1754495793627,4.66556885,169.07,169.06,42.12]
[1754495793794,4.66556885,169.07,169.05,1493.80337701]
[1754495793998,6.26721897,169.08,169.05,1493.80337701]
[1754495793999,4.66556885,169.06,169.05,1493.80337701]
[1754495794390,3.98556885,169.06,169.05,1493.80337701]
[1754495794594,1.03281105,169.08,169.05,1508.90959258]
[1754495794595,3.98556885,169.07,169.05,1508.90959258]
[1754495794814,1.03281105,169.08,169.06,42.14]
[1754495795016,3.98537351,169.07,169.06,57.24621557]
[1754495795510,10.8019965,169.07,169.06,57.24621557]
[1754495795895,10.1219965,169.07,169.06,57.24621557]
[1754495796517,10.8019965,169.07,169.06,42.14]
[1754495796718,10.8019965,169.07,169.05,1493.80337701]
[1754495796911,0.35281105,169.08,169.06,42.14]
[1754495797109,10.12062162,169.07,169.06,42.14]
[1754495797502,10.80062162,169.07,169.06,42.14]
[1754495799214,149.8,169.06,169.05,1493.80337701]
[1754495799407,160.60062162,169.06,169.05,1493.80337701]
[1754495800337,10.80062162,169.06,169.05,1493.80337701]
[1754495800521,3.98546973,169.07,169.06,15.10621557]
[1754495800695,3.98546718,169.07,169.06,57.91621557]
[1754495801538,10.12209017,169.07,169.06,57.22621557]
[1754495801712,0.68,169.11,169.1,1483.32847579]
[1754495801903,6.13662299,169.11,169.1,1525.44847579]
[1754495802516,12.72993385,169.11,169.1,1483.32847579]
[1754495802717,44.86655684,169.11,169.1,1400.96156106]
[1754495803022,28.86655684,169.11,169.1,1358.44939429]
[1754495803205,35.32569338,169.11,169.1,1282.50647238]
[1754495803409,35.32569338,169.11,169.1,1224.92220097]
[1754495803623,35.32569338,169.11,169.1,1181.29600908]
[1754495803812,28.86655684,169.11,169.1,1139.48284474]
[1754495804026,71.02655684,169.11,169.1,1139.48284474]
[1754495804223,71.02655684,169.11,169.1,1128.67882746]
[1754495804532,18.86655684,169.11,169.1,1110.07015797]
[1754495804832,28.86655684,169.11,169.1,1068.25699363]
[1754495805035,18.86655684,169.11,169.1,1068.25699363]
[1754495806540,18.86655684,169.11,169.1,985.8900789]
[1754495807432,18.86655684,169.11,169.1,903.52316417]
[1754495808420,18.86655684,169.11,169.1,821.15624944]
[1754495809320,18.86655684,169.11,169.1,738.78933471]
[1754495810432,18.86655684,169.11,169.1,656.42241998]
[1754495810936,12.72993385,169.11,169.1,506.62241998]
[1754495811339,12.04993385,169.11,169.1,506.62241998]
[1754495811528,38.04993385,169.11,169.1,506.62241998]
[1754495812113,26.0,169.11,169.1,507.31241998]
[1754495812433,48.29662299,169.12,169.1,507.31241998]
[1754495812613,48.29662299,169.12,169.11,0.69]
[1754495812809,74.29662299,169.12,169.11,0.69]
[1754495813137,26.0,169.12,169.11,0.69]
[1754495813726,3.98585246,169.12,169.11,0.69]
[1754495813910,4.01585246,169.13,169.11,0.69]
[1754495814407,0.03,169.13,169.12,0.69]
[1754495814608,6.16662299,169.13,169.11,42.14]
[1754495814839,0.03,169.13,169.11,42.14]
[1754495815015,0.03,169.13,169.12,0.69]
[1754495815911,8.69540099,169.15,169.13,15.10621557]
[1754495816235,8.69540099,169.15,169.1,518.95701959]
[1754495816236,9.39260282,169.19,169.15,21.01782021]
[1754495816440,8.55260282,169.19,169.18,21.24283856]
[1754495816609,8.55260282,169.19,169.18,63.42283856]
[1754495819115,8.58260282,169.19,169.18,57.28621557]
[1754495819331,8.58260282,169.19,169.18,63.42283856]
[1754495819532,6.13662299,169.24,169.2,498.03981716]
[1754495819837,0.68,169.24,169.21,42.18]
[1754495820041,6.81662299,169.24,169.21,42.18]
[1754495820411,6.58809535,169.26,169.21,42.18]
[1754495820612,5.90809535,169.26,169.21,42.18]
[1754495820808,6.13662299,169.24,169.21,42.18]
[1754495821223,6.13662299,169.26,169.21,42.18]
[1754495821426,4.7738169,169.27,169.21,42.18]
[1754495821627,32.58738035,169.28,169.21,42.18]
[1754495821825,6.13662299,169.26,169.21,42.18]
[1754495822137,0.68,169.26,169.21,42.18]
[1754495822324,6.13662299,169.25,169.21,42.18]
[1754495822520,0.68,169.26,169.21,42.18]
[1754495822720,6.13662299,169.25,169.21,42.18]
[1754495822946,155.93662299,169.27,169.22,15.10621557]
[1754495823120,155.93662299,169.27,169.23,42.16]
[1754495823316,6.85662299,169.26,169.23,42.16]
[1754495823534,6.85662299,169.25,169.23,42.16]
[1754495824134,6.13662299,169.24,169.22,42.14]
[1754495824443,161.84580043,169.23,169.2,498.03981716]
[1754495824636,150.52,169.22,169.21,42.14]
[1754495824950,156.65662299,169.22,169.2,540.17981716]
[1754495825330,156.65662299,169.22,169.2,498.03981716]
[1754495825544,0.72,169.21,169.2,498.03981716]
[1754495825741,149.8,169.22,169.2,498.03981716]
[1754495825947,6.85662299,169.21,169.2,498.03981716]
[1754495826325,12.76643919,169.21,169.2,498.03981716]
[1754495826657,12.76643919,169.21,169.2,497.31981716]
[1754495826846,6.6298162,169.21,169.2,497.31981716]
[1754495827166,54.92643919,169.21,169.2,497.31981716]
[1754495827338,61.06306218,169.21,169.2,497.31981716]
[1754495827527,71.06306218,169.21,169.2,414.95290243]
[1754495829028,71.06306218,169.21,169.2,332.5859877]
[1754495829845,75.01028529,169.21,169.2,291.85938217]
[1754495830041,75.01028529,169.21,169.2,187.43938468]
[1754495830353,75.01028529,169.21,169.2,146.52655089]
[1754495830646,78.09592739,169.21,169.2,146.52655089]
[1754495830850,75.01028529,169.21,169.2,135.72253361]
[1754495831044,75.01028529,169.21,169.2,74.96365344]
[1754495831250,75.01028529,169.21,169.2,64.15963616]
[1754495831839,75.01028529,169.21,169.2,53.35561888]
[1754495832059,26.0,169.18,169.1,42.22]
[1754495832248,79.7848258,169.21,169.1,42.22]
[1754495832249,6.13662299,169.16,169.13,0.65]
[1754495832437,68.16,169.17,169.14,0.65]
[1754495832647,32.13662299,169.17,169.15,0.65]
[1754495833343,42.18,169.21,169.15,42.16]
[1754495833542,26.0,169.2,169.15,42.16]
[1754495833722,6.13662299,169.16,169.13,42.2]
[1754495833925,6.13662299,169.14,169.11,0.65]
[1754495834159,6.13662299,169.12,169.1,42.26]
[1754495834342,6.13662299,169.13,169.11,0.65]
[1754495834548,68.2,169.18,169.12,0.65]
[1754495834747,6.13662299,169.16,169.12,42.87]
[1754495835067,6.13662299,169.19,169.14,6.13662299]
[1754495835229,149.8,169.17,169.15,42.87]
[1754495835554,149.8,169.17,169.16,0.65]
[1754495835763,6.13662299,169.19,169.16,0.65]
[1754495835924,42.22,169.2,169.16,0.65]
[1754495836130,48.35662299,169.2,169.17,0.65]
[1754495836447,48.35662299,169.2,169.15,48.35662299]
[1754495836448,68.22,169.22,169.18,0.65]
[1754495836652,0.72,169.21,169.16,42.22]
[1754495836831,0.72,169.2,169.16,42.22]
[1754495837161,0.72,169.19,169.13,6.13662299]
[1754495837336,42.26,169.18,169.15,6.13662299]
[1754495837533,149.8,169.19,169.17,6.13662299]
[1754495837863,42.26,169.2,169.18,6.78662299]
[1754495838038,6.13662299,169.23,169.19,0.65]
[1754495838240,42.28,169.21,169.19,0.65]
[1754495838669,6.13662299,169.23,169.19,0.65]
[1754495838872,42.28,169.22,169.19,0.65]
[1754495839073,48.41662299,169.22,169.17,6.13662299]
[1754495839260,42.28,169.22,169.17,6.78662299]
[1754495839567,42.28,169.22,169.18,0.65]
[1754495839733,48.41662299,169.22,169.18,0.65]
[1754495839933,48.35176488,169.22,169.18,0.65]
[1754495840462,6.13662299,169.23,169.19,0.65]
[1754495840666,26.0,169.24,169.19,0.65]
[1754495840667,149.8,169.22,169.19,0.65]
[1754495840845,149.8,169.22,169.2,0.65]
[1754495840846,192.06,169.22,169.2,0.65]
[1754495841065,192.04,169.22,169.2,0.65]
[1754495841594,0.72,169.21,169.16,15.75621557]
[1754495841775,0.72,169.21,169.17,6.13662299]
[1754495842150,198.17662299,169.22,169.17,6.78662299]
[1754495842346,192.04,169.22,169.18,6.13662299]
[1754495842535,192.04,169.22,169.18,6.78662299]
[1754495843489,32.13662299,169.24,169.19,21.89283856]
[1754495843701,42.24,169.23,169.2,0.65]
[1754495844603,49.09662299,169.23,169.18,21.89283856]
[1754495844757,26.0,169.24,169.19,0.65]
[1754495844962,42.22,169.23,169.19,0.65]
[1754495845174,42.22,169.23,169.18,21.24283856]
[1754495845175,48.35662299,169.23,169.18,21.24283856]
[1754495845370,6.13662299,169.23,169.18,21.89283856]
[1754495845769,32.13662299,169.24,169.19,6.78662299]
[1754495845986,42.94,169.23,169.18,21.24283856]
[1754495846191,6.13662299,169.23,169.18,21.24283856]
[1754495846388,42.22,169.23,169.19,0.65]
[1754495846602,42.94,169.23,169.18,21.24283856]
[1754495846798,49.07662299,169.23,169.18,21.89283856]
[1754495847496,32.13662299,169.24,169.19,6.78662299]
[1754495847699,0.03,169.26,169.23,6.13662299]
[1754495848062,0.03,169.26,169.21,6.78662299]
[1754495848063,6.88662299,169.26,169.21,6.78662299]
[1754495848797,42.23,169.26,169.22,0.65]
[1754495848992,42.95,169.26,169.21,6.78662299]
[1754495849394,6.85662299,169.25,169.2,6.13662299]
[1754495849570,6.85662299,169.25,169.2,21.24283856]
[1754495849885,0.03,169.26,169.21,0.65]
[1754495850094,0.03,169.26,169.19,15.10621557]
[1754495850095,0.03,169.26,169.22,6.78662299]
[1754495850401,6.13662299,169.24,169.19,6.13662299]
[1754495850604,6.13662299,169.24,169.18,15.10621557]
[1754495850605,149.8,169.25,169.21,6.13662299]
[1754495850789,192.04,169.25,169.22,6.78662299]
[1754495850978,192.04,169.25,169.21,6.13662299]
[1754495851179,192.04,169.25,169.21,6.78662299]
[1754495851699,192.02,169.25,169.22,6.78662299]
[1754495851999,192.02,169.25,169.22,6.13662299]
[1754495852207,198.87662299,169.25,169.21,15.10621557]
[1754495852505,156.65662299,169.25,169.21,15.10621557]
[1754495853002,198.87662299,169.25,169.21,15.10621557]
[1754495854393,6.79662299,169.24,169.2,15.10621557]
[1754495854774,198.15662299,169.25,169.2,21.96283856]
[1754495854974,198.81662299,169.25,169.2,21.96283856]
[1754495855174,49.01662299,169.25,169.2,21.96283856]
[1754495855391,42.88,169.25,169.21,6.13662299]
[1754495855597,0.66,169.25,169.2,15.82621557]
[1754495855999,42.18,169.25,169.2,21.24283856]
[1754495856202,6.79662299,169.24,169.2,15.10621557]
[1754495856374,0.66,169.23,169.2,15.10621557]
[1754495856577,42.84,169.25,169.2,6.13662299]
[1754495856781,42.84,169.25,169.2,6.85662299]
[1754495856975,6.79662299,169.24,169.19,21.24283856]
[1754495857283,6.13662299,169.24,169.19,21.24283856]
[1754495857500,48.31662299,169.25,169.2,6.13662299]
[1754495857704,6.79662299,169.24,169.19,6.85662299]
[1754495857917,0.66,169.23,169.19,6.13662299]
[1754495858316,6.13662299,169.24,169.19,6.13662299]
[1754495858622,0.66,169.22,169.19,6.13662299]
[1754495858780,149.8,169.21,169.19,6.13662299]
[1754495859721,149.8,169.21,169.18,15.10621557]
[1754495859722,150.46,169.2,169.15,15.10621557]
[1754495859896,150.46,169.2,169.16,6.13662299]
[1754495860097,150.46,169.2,169.17,6.13662299]
[1754495860395,150.46,169.2,169.15,21.01807309]
[1754495860396,42.8,169.19,169.15,6.13662299]
[1754495860594,0.66,169.18,169.15,6.13662299]
[1754495860993,42.14,169.19,169.17,15.10621557]
[1754495861525,191.94,169.2,169.17,6.13662299]
[1754495861828,0.66,169.19,169.14,15.10621557]
[1754495861978,42.26,169.18,169.14,15.10621557]
[1754495862183,0.66,169.19,169.15,6.13662299]
[1754495862402,0.66,169.19,169.16,6.13662299]
[1754495862607,42.26,169.19,169.17,6.13662299]
[1754495862909,149.8,169.2,169.18,6.13662299]
[1754495863096,192.06,169.2,169.18,6.13662299]
[1754495863303,149.8,169.2,169.18,6.13662299]
[1754495863814,150.46,169.2,169.16,15.10621557]
[1754495864115,149.8,169.19,169.17,6.13662299]
[1754495864305,149.8,169.19,169.15,0.72]
[1754495864306,0.66,169.19,169.15,21.24283856]
[1754495864609,42.3,169.18,169.15,21.24283856]
[1754495866016,42.96,169.18,169.15,6.13662299]
[1754495866185,42.96,169.18,169.11,0.28432314]
[1754495866186,0.66,169.17,169.11,0.72]
[1754495866389,6.13662299,169.15,169.1,0.06]
[1754495866589,42.96,169.14,169.1,27.21638158]
[1754495866810,42.3,169.14,169.13,6.13662299]
[1754495867017,150.46,169.16,169.13,6.13662299]
[1754495867217,150.46,169.16,169.1,21.07975859]
[1754495867218,192.1,169.16,169.14,6.13662299]
[1754495867519,149.8,169.16,169.15,6.13662299]
[1754495867691,42.3,169.17,169.16,15.10621557]
[1754495867892,42.3,169.17,169.16,21.24283856]
[1754495868202,42.32,169.21,169.16,27.87426542]
[1754495868414,0.66,169.2,169.15,21.01803073]
[1754495868719,48.45662299,169.21,169.1,6.19662299]
[1754495868911,49.13662299,169.19,169.14,6.13662299]
[1754495869219,0.66,169.18,169.12,15.10621557]
[1754495869420,0.66,169.18,169.14,6.13662299]
[1754495869922,48.47662299,169.19,169.14,6.13662299]
[1754495870105,0.66,169.17,169.15,15.10621557]
[1754495870893,0.66,169.16,169.13,15.10621557]
[1754495871093,0.66,169.15,169.13,15.10621557]
[1754495871637,0.66,169.14,169.1,21.30283856]
[1754495871824,0.66,169.13,169.1,21.30283856]
[1754495872118,0.66,169.13,169.1,21.07981429]
[1754495872314,0.66,169.15,169.11,6.13662299]
[1754495872526,42.34,169.16,169.13,15.10621557]
[1754495872890,42.34,169.16,169.13,6.13662299]
[1754495873092,6.79662299,169.18,169.13,6.13662299]
[1754495873301,43.0,169.17,169.12,15.10621557]
[1754495873501,6.13662299,169.19,169.14,6.13662299]
[1754495873708,192.14,169.18,169.15,6.13662299]
[1754495873922,192.14,169.18,169.12,15.10621557]
[1754495873923,192.14,169.18,169.13,5.91255955]
[1754495874221,192.14,169.18,169.14,6.13662299]
[1754495874222,192.8,169.18,169.14,6.13662299]
[1754495874820,0.66,169.17,169.14,6.13662299]
[1754495875121,149.8,169.18,169.16,6.13662299]
[1754495875906,149.8,169.18,169.16,12.04815422]
[1754495876101,149.8,169.18,169.16,6.13662299]
[1754495876303,0.66,169.18,169.15,15.10621557]
[1754495876641,0.66,169.2,169.16,6.13662299]
[1754495876810,31.93846355,169.25,169.17,15.10621557]
[1754495876811,49.11662299,169.22,169.17,15.10621557]
[1754495877013,0.66,169.21,169.17,21.24283856]
[1754495877214,31.93846355,169.25,169.18,6.13662299]
[1754495877393,0.66,169.23,169.19,6.13662299]
[1754495877597,0.66,169.23,169.17,15.10621557]
[1754495877598,0.66,169.22,169.17,21.24283856]
[1754495877819,0.66,169.21,169.17,21.24283856]
[1754495878211,0.66,169.21,169.17,15.10621557]
[1754495878212,0.66,169.2,169.17,15.10621557]
[1754495878422,6.13662299,169.21,169.17,15.10621557]
[1754495878626,0.66,169.19,169.17,15.10621557]
[1754495879797,0.66,169.19,169.16,15.10621557]
[1754495880001,42.96,169.21,169.17,6.13662299]
[1754495880233,42.96,169.21,169.13,0.86216157]
[1754495880234,0.66,169.2,169.13,6.63235995]
[1754495880453,42.96,169.2,169.15,6.13662299]
[1754495880610,0.66,169.19,169.14,15.10621557]
[1754495880938,0.66,169.18,169.14,21.24283856]
[1754495881144,0.66,169.18,169.15,6.13662299]
[1754495881352,42.32,169.2,169.16,6.13662299]
[1754495881710,0.66,169.19,169.16,6.13662299]
[1754495881911,0.66,169.18,169.15,6.13662299]
[1754495882552,0.66,169.18,169.14,15.10621557]
[1754495882553,0.66,169.17,169.14,21.24283856]
[1754495883348,6.13662299,169.19,169.14,21.24283856]
[1754495883349,42.3,169.2,169.16,6.13662299]
[1754495883509,43.0,169.2,169.16,6.13662299]
[1754495883913,0.7,169.2,169.17,6.13662299]
[1754495884719,3.25935977,169.21,169.19,12.27324598]
[1754495885018,4.97491507,169.38,169.25,0.14216157]
[1754495885226,3.08870431,169.43,169.25,0.14216157]
[1754495885227,3.08870431,169.43,169.38,41.10621557]
[1754495885459,9.39260282,169.51,169.45,26.0]
[1754495885460,4.71704422,169.48,169.45,26.0]
[1754495885620,9.39260282,169.51,169.5,26.0]
[1754495885947,9.39260282,169.51,169.5,57.27221906]
[1754495886125,9.39260282,169.51,169.5,26.0]
[1754495886444,9.39260282,169.51,169.5,12.036328]
[1754495886744,0.7,169.62,169.54,26.0]
[1754495886913,0.7,169.62,169.55,26.0]
[1754495887115,0.7,169.62,169.6,26.0]
[1754495887315,0.7,169.62,169.52,46.04]
[1754495887539,0.7,169.62,169.57,6.13662299]
[1754495887738,0.7,169.61,169.57,26.0]
[1754495887995,0.7,169.6,169.58,6.13662299]
[1754495888149,6.13662299,169.66,169.56,5.89761736]
[1754495888353,0.7,169.62,169.56,5.89761736]
[1754495888585,0.7,169.62,169.56,26.0]
[1754495888879,0.7,169.62,169.56,9.75140133]
[1754495889052,0.7,169.62,169.57,9.75140133]
[1754495889263,9.75140133,169.61,169.55,9.75140133]
[1754495889447,0.7,169.6,169.5,5.89970501]
[1754495889651,9.75140133,169.59,169.5,20.64896754]
[1754495889846,0.7,169.58,169.5,20.64896754]
[1754495890092,0.7,169.58,169.5,5.89970501]
[1754495890264,9.75140133,169.55,169.5,5.89970501]
[1754495890469,10.45140133,169.54,169.5,5.89970501]
[1754495890771,9.71945078,169.63,169.5,20.64896754]
[1754495890947,0.7,169.56,169.51,9.75140133]
[1754495891143,0.7,169.55,169.5,46.64896754]
[1754495891347,9.71945078,169.63,169.5,46.64896754]
[1754495891348,9.75140133,169.56,169.51,9.75140133]